bitfinex/quotes_BTCUSD_20251214
["timestamp","ask_amount","ask_price","bid_price","bid_amount"]
[1765693844802,0.11062224,90176.0,90175.0,1.00261287]
[1765693846635,0.23287507,90178.0,90175.0,1.00261287]
[1765693846828,0.23287507,90178.0,90175.0,0.00261287]
[1765693847001,0.23287251,90179.0,90175.0,0.01370241]
[1765693847207,0.11062224,90176.0,90175.0,0.23549337]
[1765693847366,0.11062224,90176.0,90175.0,1.23549337]
[1765693847575,0.11062224,90176.0,90175.0,1.23497167]
[1765693848005,0.11062224,90176.0,90175.0,1.23597167]
[1765693848207,0.11062224,90176.0,90175.0,1.23497167]
[1765693848639,0.11062224,90176.0,90175.0,1.23597167]
[1765693849047,0.11062224,90176.0,90175.0,1.00309117]
[1765693862266,0.23287457,90178.0,90175.0,1.00309117]
[1765693862556,0.11062224,90176.0,90175.0,1.00261287]
[1765693862760,0.11062224,90176.0,90175.0,0.00261287]
[1765693862977,0.11062224,90176.0,90175.0,1.00261287]
[1765693874927,0.11062224,90176.0,90175.0,0.74711287]
[1765693875276,0.11062224,90176.0,90175.0,0.74759117]
[1765693877621,0.11062224,90176.0,90175.0,0.58289117]
[1765693879252,0.11062224,90176.0,90175.0,0.56049117]
[1765693879660,0.11062224,90176.0,90175.0,0.50749117]
[1765693882271,0.11062224,90176.0,90175.0,0.0014783]
[1765693882272,0.1715165,90176.0,90175.0,0.0014783]
[1765693882656,0.20482339,90176.0,90175.0,0.0014783]
[1765693883638,0.23254695,90176.0,90175.0,0.0014783]
[1765693911758,0.20482339,90176.0,90175.0,0.0014783]
[1765693911958,0.23254695,90176.0,90175.0,0.0014783]
[1765693912741,0.23354695,90176.0,90175.0,0.0014783]
[1765693912945,0.23354695,90176.0,90175.0,0.0004783]
[1765693922090,0.20582339,90176.0,90175.0,0.0004783]
[1765693956563,0.23354695,90176.0,90175.0,0.0004783]
[1765693961170,0.20582339,90176.0,90175.0,0.0004783]
[1765693962679,0.14492913,90176.0,90175.0,0.0004783]
[1765693962839,0.03430689,90176.0,90175.0,0.0004783]
[1765693963046,0.14492913,90176.0,90175.0,0.0004783]
[1765693967082,0.20582339,90176.0,90175.0,0.0004783]
[1765693999400,0.23354695,90176.0,90175.0,0.0004783]
[1765694000523,0.20582339,90176.0,90175.0,0.0004783]
[1765694002070,0.23354695,90176.0,90175.0,0.0004783]
[1765694003455,0.20582339,90176.0,90175.0,0.0004783]
[1765694075764,0.09520115,90176.0,90175.0,0.0004783]
[1765694075944,0.20582339,90176.0,90175.0,0.0004783]
[1765694092736,0.09520115,90176.0,90175.0,0.0004783]
[1765694092937,0.20582339,90176.0,90175.0,0.0004783]
[1765694102535,0.20582339,90176.0,90170.0,0.0002]
[1765694102536,0.11062224,90171.0,90170.0,0.0002]
[1765694102740,0.13834734,90171.0,90170.0,0.0002]
[1765694103167,0.14872008,90171.0,90170.0,0.0002]
[1765694103788,0.1551618,90171.0,90170.0,0.0002]
[1765694105145,0.14678906,90171.0,90170.0,0.0002]
[1765694108602,0.14678906,90171.0,90160.0,0.0002]
[1765694108603,0.11062224,90161.0,90160.0,0.0002]
[1765694109328,0.12171523,90161.0,90160.0,0.0002]
[1765694111784,0.1494434,90161.0,90160.0,0.0002]
[1765694128915,0.1494434,90161.0,90160.0,0.00031572]
[1765694131379,0.12171523,90161.0,90160.0,0.00031572]
[1765694132503,0.34354063,90161.0,90160.0,0.00031572]
[1765694132913,0.12171523,90161.0,90160.0,0.04037859]
[1765694133118,0.01109299,90161.0,90160.0,0.04037859]
[1765694134725,0.0110909,90164.0,90160.0,0.27329784]
[1765694134923,0.0110909,90164.0,90163.0,0.02778]
[1765694135330,0.0110909,90164.0,90163.0,0.05074]
[1765694136121,0.0120909,90164.0,90163.0,0.05074]
[1765694137397,0.0110909,90164.0,90163.0,0.05074]
[1765694137897,0.0120909,90164.0,90163.0,0.05074]
[1765694139243,0.001,90164.0,90163.0,0.05074]
[1765694140778,0.11162224,90164.0,90163.0,0.01229]
[1765694141121,0.11062224,90162.0,90161.0,0.2329144]
[1765694141315,0.11062224,90162.0,90161.0,0.01109127]
[1765694141522,0.11062224,90162.0,90161.0,0.03405127]
[1765694142046,0.11062224,90162.0,90161.0,0.05115414]
[1765694144137,0.11062224,90163.0,90162.0,0.23291408]
[1765694144338,0.11062224,90163.0,90162.0,0.25748695]
[1765694144549,0.11062224,90163.0,90162.0,0.27297695]
[1765694145432,0.11162224,90163.0,90162.0,0.27297695]
[1765694146949,0.001,90163.0,90162.0,0.27297695]
[1765694147149,0.11162224,90163.0,90162.0,0.01270401]
[1765694147352,0.11162224,90163.0,90162.0,0.00161287]
[1765694163754,0.11162224,90163.0,90162.0,0.03034287]
[1765694163923,0.11162224,90163.0,90162.0,0.05362287]
[1765694171310,0.11162224,90163.0,90162.0,0.00161287]
[1765694171311,0.001,90163.0,90162.0,0.00161287]
[1765694173749,0.11162224,90163.0,90162.0,0.00161287]
[1765694176455,0.001,90163.0,90162.0,0.00161287]
[1765694176650,0.11162224,90163.0,90162.0,0.00161287]
[1765694188487,0.001,90163.0,90162.0,0.00161287]
[1765694188689,0.11162224,90163.0,90162.0,0.00161287]
[1765694193818,0.001,90163.0,90162.0,0.00161287]
[1765694195585,0.11162224,90163.0,90162.0,0.00161287]
[1765694208650,0.11606352,90163.0,90162.0,0.00161287]
[1765694213052,0.00544128,90163.0,90162.0,0.00161287]
[1765694213256,0.11606352,90163.0,90162.0,0.00161287]
[1765694216297,0.00544128,90163.0,90162.0,0.00161287]
[1765694219534,0.11606352,90163.0,90162.0,0.00161287]
[1765694220315,0.00544128,90163.0,90162.0,0.00161287]
[1765694220565,0.11606352,90163.0,90162.0,0.00161287]
[1765694223024,0.11062224,90161.0,90160.0,0.00031572]
[1765694223709,0.12291224,90161.0,90160.0,0.00031572]
[1765694234327,0.12291224,90161.0,90160.0,0.05218572]
[1765694238448,0.01229,90161.0,90160.0,0.05218572]
[1765694238585,0.12291224,90161.0,90160.0,0.05218572]
[1765694242977,0.01109016,90170.0,90168.0,1.0]
[1765694243208,0.03330692,90169.0,90167.0,1.01109053]
[1765694243407,0.03330692,90169.0,90168.0,1.0]
[1765694243679,0.14392916,90169.0,90168.0,1.03991]
[1765694244197,0.14392916,90169.0,90168.0,1.04191]
[1765694244429,0.14392916,90169.0,90168.0,1.26571818]
[1765694244647,0.14392916,90169.0,90168.0,1.26171818]
[1765694244910,0.14392916,90169.0,90168.0,1.26371818]
[1765694245129,0.14392916,90169.0,90168.0,1.26571818]
[1765694247171,0.11062224,90169.0,90168.0,1.26571818]
[1765694256054,0.04439683,90172.0,90170.0,1.0]
[1765694256270,0.04439683,90172.0,90171.0,1.02902]
[1765694256496,0.04439683,90172.0,90170.0,1.0]
[1765694256759,0.04439683,90172.0,90171.0,1.0]
[1765694256908,0.04439683,90172.0,90171.0,1.01655]
[1765694257110,0.04439683,90172.0,90171.0,1.0398]
[1765694257518,0.15501907,90172.0,90171.0,1.0398]
[1765694257863,0.04439683,90172.0,90171.0,1.0398]
[1765694258172,0.15501907,90172.0,90171.0,1.0418]
[1765694258872,0.15501907,90172.0,90171.0,1.0428]
[1765694259978,0.14392916,90172.0,90171.0,1.0428]
[1765694260803,0.03330692,90172.0,90171.0,1.0428]
[1765694265855,0.14392916,90172.0,90171.0,1.0428]
[1765694268193,0.11062224,90172.0,90171.0,1.0428]
[1765694272582,0.1715165,90172.0,90171.0,0.003]
[1765694272795,0.23255143,90172.0,90171.0,0.003]
[1765694273419,0.23255143,90172.0,90171.0,0.001]
[1765694273851,0.11062224,90161.0,90160.0,0.00192859]
[1765694274505,0.11062224,90161.0,90160.0,0.02517859]
[1765694275012,0.11062224,90161.0,90160.0,0.02717859]
[1765694275930,0.11062224,90161.0,90160.0,0.00592859]
[1765694277139,0.02218228,90166.0,90161.0,0.01109127]
[1765694277299,0.33241872,90173.0,90168.0,0.0110904]
[1765694277511,0.33241872,90173.0,90171.0,0.02762]
[1765694282216,0.12171215,90172.0,90171.0,0.05198]
[1765694282443,0.12171215,90172.0,90171.0,0.05298]
[1765694285676,0.11062224,90172.0,90171.0,0.05298]
[1765694285936,0.03330703,90174.0,90172.0,1.0]
[1765694286136,0.0110893,90177.0,90174.0,1.0]
[1765694286358,0.0110893,90177.0,90176.0,1.01546]
[1765694286959,0.0110893,90177.0,90176.0,1.03982]
[1765694289183,0.0110893,90177.0,90176.0,1.04082]
[1765694290022,0.0110893,90177.0,90176.0,1.04182]
[1765694294984,0.0110893,90177.0,90176.0,0.04182]
[1765694295215,0.0110893,90177.0,90176.0,1.04182]
[1765694297830,0.22177384,90182.0,90176.0,1.04182]
[1765694297831,0.01108819,90186.0,90182.0,0.01108868]
[1765694298053,0.01108794,90188.0,90184.0,0.24501497]
[1765694298281,0.01108794,90188.0,90187.0,0.02762]
[1765694298735,0.01108794,90188.0,90187.0,0.05198]
[1765694298883,0.23284475,90189.0,90187.0,0.05198]
[1765694298884,0.01108782,90189.0,90187.0,0.05198]
[1765694299099,0.01108782,90189.0,90188.0,0.03982]
[1765694309753,0.01108782,90189.0,90188.0,0.05135]
[1765694313627,0.34346318,90191.0,90188.0,0.05135]
[1765694313839,0.34346318,90191.0,90190.0,0.02791]
[1765694314140,0.12170982,90191.0,90190.0,0.02791]
[1765694314289,0.12170982,90191.0,90190.0,0.05164]
[1765694317849,0.01108758,90191.0,90190.0,0.05164]
[1765694318478,0.26613855,90193.0,90190.0,0.05164]
[1765694318688,0.26613855,90193.0,90192.0,0.01638]
[1765694319112,0.26613855,90193.0,90192.0,0.04011]
[1765694321874,0.11062224,90193.0,90192.0,0.04172287]
[1765694325102,0.01108708,90195.0,90192.0,0.05281032]
[1765694325319,0.01108708,90195.0,90194.0,0.01638]
[1765694325796,0.12170908,90197.0,90194.0,0.04011]
[1765694325972,0.12170908,90197.0,90196.0,0.02791]
[1765694326180,0.11062224,90197.0,90196.0,0.05164]
[1765694326380,0.11062224,90197.0,90196.0,0.05325287]
[1765694327727,0.11062224,90197.0,90196.0,0.05425287]
[1765694333946,0.23281528,90201.0,90196.0,0.05425287]
[1765694333947,0.11062224,90198.0,90197.0,0.01108684]
[1765694334110,0.01108647,90200.0,90198.0,0.01638]
[1765694334314,0.23281792,90200.0,90198.0,0.01638]
[1765694334950,0.01108647,90200.0,90198.0,0.01638]
[1765694335152,0.01108647,90200.0,90198.0,0.04011]
[1765694335354,0.23281796,90200.0,90199.0,0.02791]
[1765694335594,0.23281796,90200.0,90199.0,0.0516]
[1765694336239,0.23281796,90200.0,90199.0,0.02791]
[1765694338440,0.01108647,90200.0,90199.0,0.02791]
[1765694340360,0.01108647,90200.0,90199.0,0.0516]
[1765694343345,0.12170859,90201.0,90199.0,0.0516]
[1765694344717,0.34343776,90201.0,90199.0,0.0516]
[1765694346429,0.12170859,90201.0,90199.0,0.0516]
[1765694346573,0.3434377,90201.0,90199.0,0.0516]
[1765694346977,0.01108635,90201.0,90200.0,0.02369]
[1765694347196,0.01108635,90201.0,90200.0,0.03907]
[1765694348169,0.12170834,90203.0,90200.0,0.05176934]
[1765694348371,0.12170834,90203.0,90202.0,0.02699]
[1765694348864,0.12170834,90203.0,90202.0,0.05068]
[1765694350179,0.12170834,90203.0,90202.0,0.05268]
[1765694352972,0.11062224,90203.0,90202.0,0.05429287]
[1765694356323,0.22171533,90206.0,90202.0,0.28710192]
[1765694356543,0.22171533,90206.0,90205.0,0.02699]
[1765694356698,0.01108561,90207.0,90205.0,0.02699]
[1765694356900,0.01108561,90207.0,90206.0,0.03907]
[1765694357921,0.12170785,90207.0,90206.0,0.03907]
[1765694364982,0.11062224,90207.0,90206.0,0.03907]
[1765694367657,0.11062224,90207.0,90206.0,0.26239761]
[1765694367867,0.11062224,90207.0,90206.0,0.04068287]
[1765694373415,0.01108536,90209.0,90206.0,0.04068287]
[1765694373598,0.01108536,90209.0,90208.0,0.02801]
[1765694374365,0.01108536,90209.0,90208.0,0.05207]
[1765694375367,0.1217076,90209.0,90208.0,0.05207]
[1765694380387,0.01108536,90209.0,90208.0,0.05207]
[1765694384779,0.1217076,90209.0,90208.0,0.05207]
[1765694385108,0.01108536,90209.0,90208.0,0.05207]
[1765694387286,0.01108499,90212.0,90209.0,1.0]
[1765694387496,0.01108499,90212.0,90211.0,0.02801]
[1765694387709,0.01108487,90213.0,90211.0,0.02801]
[1765694387941,0.23277693,90216.0,90212.0,0.04011]
[1765694388122,0.26607184,90216.0,90215.0,0.02801]
[1765694388334,0.23277693,90216.0,90215.0,0.02801]
[1765694388578,0.23277693,90216.0,90215.0,0.05207]
[1765694389122,0.34339917,90216.0,90215.0,0.05207]
[1765694390688,0.12170674,90216.0,90215.0,0.05207]
[1765694391099,0.3433969,90216.0,90215.0,0.05207]
[1765694391503,0.23277466,90216.0,90215.0,0.05207]
[1765694393758,0.23316066,90216.0,90215.0,0.05207]
[1765694394642,0.22207616,90216.0,90215.0,0.05207]
[1765694394867,0.000386,90216.0,90215.0,0.05207]
[1765694401396,0.000386,90216.0,90215.0,1.05207]
[1765694401827,0.500386,90216.0,90215.0,1.05207]
[1765694402029,0.500386,90216.0,90215.0,1.05368287]
[1765694405110,0.500386,90216.0,90215.0,1.05354435]
[1765694405524,0.72207616,90216.0,90215.0,1.05354435]
[1765694405949,0.500386,90216.0,90215.0,1.05354435]
[1765694407705,0.61100824,90216.0,90215.0,1.05354435]
[1765694408317,0.500386,90216.0,90215.0,1.05354435]
[1765694415519,0.500386,90216.0,90215.0,0.05354435]
[1765694415661,0.500386,90216.0,90215.0,1.05354435]
[1765694420467,0.61100824,90216.0,90215.0,1.05354435]
[1765694420856,0.500386,90216.0,90215.0,1.05354435]
[1765694421683,0.500386,90216.0,90215.0,0.05354435]
[1765694421898,0.500386,90216.0,90215.0,1.05354435]
[1765694438887,0.61100824,90216.0,90215.0,1.05354435]
[1765694440040,0.500386,90216.0,90215.0,1.05354435]
[1765694450876,0.500386,90216.0,90215.0,1.02948435]
[1765694452324,0.61100824,90216.0,90215.0,1.02948435]
[1765694453098,0.61100824,90216.0,90215.0,0.02948435]
[1765694453303,0.61100824,90216.0,90215.0,1.02948435]
[1765694453616,0.500386,90216.0,90215.0,1.02948435]
[1765694454591,0.500386,90216.0,90215.0,1.05377435]
[1765694465787,0.61100824,90216.0,90215.0,1.05377435]
[1765694466593,0.500386,90216.0,90215.0,1.05377435]
[1765694466808,0.61100824,90216.0,90215.0,1.05377435]
[1765694467012,0.500386,90216.0,90215.0,1.05377435]
[1765694480718,0.500386,90216.0,90215.0,1.05577435]
[1765694481499,0.500386,90216.0,90215.0,1.05677435]
[1765694486010,0.61100824,90216.0,90215.0,1.00461287]
[1765694490323,0.61100824,90216.0,90215.0,1.02748287]
[1765694491271,0.61100824,90216.0,90215.0,1.00461287]
[1765694495704,0.61100824,90216.0,90215.0,0.00461287]
[1765694495985,0.61100824,90216.0,90215.0,1.00461287]
[1765694496192,0.500386,90216.0,90215.0,1.00461287]
[1765694497091,0.500386,90216.0,90215.0,1.04252287]
[1765694497740,0.500386,90216.0,90215.0,0.04252287]
[1765694497962,0.500386,90216.0,90215.0,1.04252287]
[1765694498164,0.500386,90216.0,90215.0,1.01965287]
[1765694501247,0.500386,90216.0,90215.0,1.04252287]
[1765694505783,0.500386,90216.0,90215.0,0.04252287]
[1765694505997,0.500386,90216.0,90215.0,1.04252287]
[1765694509341,0.500386,90216.0,90215.0,1.07581239]
[1765694510687,0.500386,90216.0,90215.0,1.04252287]
[1765694510853,0.500386,90216.0,90215.0,1.07581183]
[1765694512046,0.500386,90216.0,90215.0,1.09329183]
[1765694513758,0.500386,90216.0,90215.0,1.09229183]
[1765694513958,0.500386,90216.0,90215.0,1.17191036]
[1765694514210,0.500386,90216.0,90215.0,1.17491036]
[1765694514412,0.500386,90216.0,90215.0,1.09529183]
[1765694515069,0.500386,90216.0,90215.0,1.09329183]
[1765694515284,0.500386,90216.0,90215.0,1.28362082]
[1765694515504,0.500386,90216.0,90215.0,1.20700229]
[1765694515713,0.500386,90216.0,90215.0,1.09629183]
[1765694516576,0.500386,90216.0,90215.0,1.20700229]
[1765694517003,0.500386,90216.0,90215.0,0.20700229]
[1765694517217,0.500386,90216.0,90215.0,1.20700229]
[1765694517429,0.500386,90216.0,90215.0,1.09629183]
[1765694517856,0.500386,90216.0,90215.0,1.17591036]
[1765694518273,0.500386,90216.0,90215.0,1.09629183]
[1765694518487,0.500386,90216.0,90215.0,1.17595267]
[1765694518710,0.500386,90216.0,90215.0,1.28666313]
[1765694519334,0.500386,90216.0,90215.0,1.28064725]
[1765694519537,0.500386,90216.0,90215.0,1.28464725]
[1765694520227,0.500386,90216.0,90215.0,1.55659655]
[1765694520649,0.500386,90216.0,90215.0,1.56059655]
[1765694522659,0.500386,90216.0,90215.0,1.61061494]
[1765694523967,0.33620056,90216.0,90215.0,1.60661494]
[1765694524315,0.33620056,90216.0,90215.0,1.61161494]
[1765694525090,0.33620056,90216.0,90215.0,1.60261494]
[1765694525304,0.33720056,90216.0,90215.0,1.60661494]
[1765694525508,0.33720056,90216.0,90215.0,1.60261494]
[1765694525931,0.33920056,90216.0,90215.0,1.60261494]
[1765694526146,0.00920056,90216.0,90215.0,0.60261494]
[1765694526354,0.00920056,90216.0,90215.0,1.58894994]
[1765694527177,0.00920056,90216.0,90215.0,0.60261494]
[1765694527384,0.00920056,90216.0,90215.0,1.58894994]
[1765694531126,0.00196003,90217.0,90216.0,1.65945401]
[1765694531336,0.00196003,90217.0,90216.0,1.69936688]
[1765694532294,0.00296003,90217.0,90216.0,1.69936688]
[1765694532520,0.00596003,90217.0,90216.0,1.69936688]
[1765694532731,1e-08,90217.0,90216.0,1.69936688]
[1765694532939,1e-08,90217.0,90216.0,1.71044561]
[1765694536141,1e-08,90217.0,90216.0,1.80996877]
[1765694536497,1e-08,90217.0,90216.0,1.71044561]
[1765694537198,0.01107861,90264.0,90261.0,0.01107898]
[1765694537765,0.00134361,90262.0,90261.0,0.01107898]
[1765694538747,0.00134361,90262.0,90261.0,0.03432898]
[1765694539171,0.00234361,90262.0,90261.0,0.03432898]
[1765694539810,0.00234361,90262.0,90261.0,0.02325]
[1765694540039,0.00234361,90262.0,90259.0,0.02316922]
[1765694540174,0.001,90262.0,90259.0,0.02316922]
[1765694540380,0.00128392,90260.0,90259.0,0.02316922]
[1765694540576,0.00128392,90260.0,90259.0,0.04641922]
[1765694542375,0.00228392,90260.0,90259.0,0.04641922]
[1765694545935,0.00228392,90260.0,90259.0,0.02316922]
[1765694549928,0.00228392,90260.0,90259.0,0.01209]
[1765694555003,0.11062224,90258.0,90257.0,0.9674]
[1765694555204,0.11062224,90258.0,90257.0,0.986335]
[1765694555408,0.22158946,90257.0,90256.0,0.01107885]
[1765694555608,0.3322117,90257.0,90256.0,0.01107885]
[1765694556192,0.22161401,90247.0,90246.0,1.04590422]
[1765694556394,0.01108045,90249.0,90248.0,0.986335]
[1765694556947,0.01108045,90249.0,90247.0,0.986335]
[1765694557148,0.01108045,90249.0,90248.0,1.01961152]
[1765694557570,0.01108045,90249.0,90248.0,1.02061152]
[1765694559070,0.01108045,90249.0,90248.0,1.02161152]
[1765694560230,0.01108045,90249.0,90248.0,0.03527652]
[1765694560457,0.01108045,90249.0,90248.0,1.02161152]
[1765694566056,0.01203604,90249.0,90248.0,1.02161152]
[1765694570649,0.01203604,90249.0,90248.0,0.988335]
[1765694577970,0.00095559,90249.0,90248.0,0.988335]
[1765694581251,0.22256469,90249.0,90248.0,0.988335]
[1765694582277,0.00095559,90249.0,90248.0,0.988335]
[1765694582812,0.00095559,90249.0,90248.0,0.002]
[1765694583215,0.11157783,90249.0,90248.0,0.002]
[1765694583807,0.00095559,90249.0,90248.0,0.002]
[1765694584010,0.11157783,90249.0,90248.0,0.002]
[1765694588488,0.11157783,90249.0,90248.0,0.02454]
[1765694588691,0.11157783,90249.0,90248.0,0.002]
[1765694601385,0.33318693,90249.0,90248.0,0.002]
[1765694610438,0.11157783,90249.0,90248.0,0.002]
[1765694610654,0.33318693,90249.0,90248.0,0.002]
[1765694613181,0.22256469,90249.0,90248.0,0.002]
[1765694613385,0.33318693,90249.0,90248.0,0.002]
[1765694619344,0.33318693,90249.0,90248.0,0.001]
[1765694620641,0.33226188,90237.0,90236.0,0.986335]
[1765694621085,0.33285921,90237.0,90236.0,0.986335]
[1765694621501,0.22223697,90237.0,90236.0,0.986335]
[1765694621646,0.33285921,90237.0,90236.0,0.986335]
[1765694621847,0.33285921,90237.0,90231.0,0.05956922]
[1765694621848,0.34335047,90234.0,90231.0,0.05956922]
[1765694622048,0.11062224,90227.0,90225.0,0.07065262]
[1765694622274,0.11062224,90226.0,90225.0,0.07065262]
[1765694622633,0.11062224,90226.0,90225.0,0.09515262]
[1765694622838,0.11062224,90226.0,90225.0,0.0355834]
[1765694622970,0.11062224,90226.0,90225.0,0.0519634]
[1765694623805,0.11062224,90226.0,90225.0,0.0549634]
[1765694624793,0.11062224,90226.0,90225.0,0.05657627]
[1765694625018,0.11062224,90226.0,90225.0,0.05957627]
[1765694625196,0.11062224,90229.0,90228.0,0.01108303]
[1765694625406,0.11062224,90229.0,90228.0,0.23274371]
[1765694625598,0.11062224,90229.0,90228.0,0.27362371]
[1765694626008,0.11062224,90229.0,90228.0,0.05196303]
[1765694627031,0.11062224,90229.0,90228.0,0.05796303]
[1765694630452,0.11062224,90229.0,90228.0,0.04688]
[1765694635616,0.11062224,90229.0,90228.0,0.04598]
[1765694636015,0.11098067,90229.0,90228.0,0.04598]
[1765694642089,0.11098067,90229.0,90228.0,0.02238]
[1765694644259,0.11098067,90229.0,90228.0,0.04598]
[1765694647259,0.11098067,90229.0,90228.0,0.02238]
[1765694648517,0.11098067,90229.0,90228.0,0.006]
[1765694669772,0.11098067,90229.0,90228.0,0.04438]
[1765694671036,0.00035843,90229.0,90228.0,0.04438]
[1765694672250,0.00035843,90229.0,90228.0,0.26604068]
[1765694672886,0.00035843,90229.0,90228.0,0.04438]
[1765694674802,0.00035843,90229.0,90228.0,0.10394922]
[1765694675656,0.00035843,90229.0,90228.0,0.04438]
[1765694676083,0.22201665,90229.0,90228.0,0.04438]
[1765694676312,0.22201665,90229.0,90228.0,0.10394922]
[1765694676689,0.00035843,90229.0,90228.0,0.10394922]
[1765694679133,0.00035843,90229.0,90228.0,0.04438]
[1765694679540,0.00035843,90229.0,90228.0,0.10394922]
[1765694682701,0.00035843,90229.0,90228.0,0.3256099]
[1765694683530,0.00035843,90229.0,90228.0,0.04438]
[1765694685803,0.00035843,90229.0,90228.0,0.26604068]
[1765694687963,0.11098067,90229.0,90228.0,0.02162]
[1765694688481,0.11098067,90229.0,90228.0,0.04438]
[1765694688682,0.00035843,90229.0,90228.0,0.04138]
[1765694689134,0.00035843,90229.0,90228.0,0.04338]
[1765694689444,0.00035843,90229.0,90228.0,0.04038]
[1765694689953,0.00035843,90229.0,90228.0,0.04238]
[1765694692138,0.00035843,90229.0,90228.0,0.01962]
[1765694692941,0.00035843,90229.0,90228.0,0.04238]
[1765694693536,0.22201665,90229.0,90228.0,0.05290512]
[1765694693758,0.22201665,90229.0,90228.0,0.03728512]
[1765694694075,0.22201665,90229.0,90228.0,0.004]
[1765694695885,0.33263889,90229.0,90228.0,0.004]
[1765694696245,0.11062224,90228.0,90227.0,0.03328512]
[1765694696666,0.1109508,90228.0,90227.0,0.03328512]
[1765694697505,0.33228537,90227.0,90225.0,0.00161287]
[1765694697732,0.33228537,90227.0,90226.0,0.03328516]
[1765694699201,0.33228537,90227.0,90226.0,0.03428516]
[1765694699597,0.33228537,90227.0,90226.0,0.03528516]
[1765694704912,0.11062224,90227.0,90226.0,0.03528516]
[1765694705369,0.11092094,90227.0,90226.0,0.03528516]
[1765694705810,0.11092094,90227.0,90226.0,0.002]
[1765694706657,0.0002987,90227.0,90226.0,0.002]
[1765694707110,0.0002987,90227.0,90226.0,0.02563]
[1765694707332,0.0002987,90227.0,90226.0,0.03671291]
[1765694709749,0.0002987,90227.0,90226.0,0.05337578]
[1765694710784,0.0002987,90227.0,90226.0,0.04229287]
[1765694712652,0.0002987,90227.0,90226.0,0.26395846]
[1765694713664,0.0002987,90227.0,90226.0,0.27504137]
[1765694714550,0.0002987,90227.0,90226.0,0.05337578]
[1765694718941,0.0002987,90227.0,90226.0,0.27504137]
[1765694722566,0.0002987,90227.0,90226.0,0.26395846]
[1765694723029,0.0002987,90227.0,90226.0,0.04229287]
[1765694723730,0.0002987,90227.0,90226.0,0.26395846]
[1765694724099,0.0002987,90227.0,90226.0,0.04229287]
[1765694726272,0.0002987,90227.0,90226.0,0.00361287]
[1765694727076,0.0002987,90227.0,90226.0,0.00261287]
[1765694727625,0.0002987,90227.0,90226.0,0.00361287]
[1765694761371,0.11092094,90227.0,90226.0,0.002]
[1765694762420,0.11092094,90227.0,90221.0,0.07704922]
[1765694762625,0.22167296,90223.0,90222.0,0.335]
[1765694763614,0.22167296,90223.0,90222.0,0.986335]
[1765694763814,0.22167296,90223.0,90222.0,0.987335]
[1765694765534,0.22167296,90223.0,90222.0,0.988335]
[1765694774715,0.22167296,90223.0,90222.0,0.002]
[1765694774924,0.22167296,90223.0,90222.0,0.988335]
[1765694776988,0.01132236,90225.0,90223.0,0.986335]
[1765694778182,0.01132236,90225.0,90223.0,0.987335]
[1765694778375,0.01132236,90225.0,90224.0,0.986335]
[1765694779233,0.01132236,90225.0,90223.0,0.986335]
[1765694779742,0.01132236,90225.0,90224.0,0.988335]
[1765694780743,0.01132236,90225.0,90224.0,0.987335]
[1765694781086,0.01132236,90225.0,90222.0,0.986335]
[1765694781303,0.01132236,90225.0,90224.0,0.986335]
[1765694781671,0.01132236,90225.0,90223.0,0.986335]
[1765694782007,0.2216705,90224.0,90223.0,0.986335]
[1765694782169,0.2216705,90224.0,90223.0,1.009135]
[1765694782367,0.00023896,90225.0,90224.0,0.986335]
[1765694782581,0.00023896,90225.0,90224.0,1.02657787]
[1765694784577,0.00023896,90225.0,90224.0,1.02757787]
[1765694785043,0.00023896,90225.0,90224.0,1.02857787]
[1765694788143,0.1108612,90225.0,90224.0,0.64191287]
[1765694788359,0.1108612,90225.0,90224.0,0.50041287]
[1765694789041,0.1108612,90225.0,90224.0,0.45811287]
[1765694790164,0.02794746,90225.0,90224.0,0.4565]
[1765694790373,0.1385697,90225.0,90224.0,0.002]
[1765694793525,0.16713433,90225.0,90224.0,0.002]
[1765694797354,0.22171965,90204.0,90203.0,0.01748]
[1765694797541,0.23280058,90206.0,90204.0,0.2115]
[1765694798693,0.23280058,90206.0,90204.0,0.2125]
[1765694798881,0.23280058,90206.0,90205.0,0.986335]
[1765694799194,0.23280058,90206.0,90205.0,0.5743]
[1765694799416,0.23280058,90206.0,90204.0,0.001]
[1765694799982,0.22171959,90205.0,90204.0,0.1443]
[1765694800893,0.22171959,90205.0,90204.0,0.1453]
[1765694801092,0.22171959,90205.0,90204.0,0.001]
[1765694801292,0.22171959,90205.0,90203.0,0.01748]
[1765694801487,0.22171959,90205.0,90204.0,0.001]
[1765694801896,0.22171959,90205.0,90204.0,0.002]
[1765694802282,0.22171959,90205.0,90204.0,0.001]
[1765694802511,0.33234183,90205.0,90204.0,0.001]
[1765694804577,0.33234183,90205.0,90204.0,0.002]
[1765694805045,0.25028058,90206.0,90204.0,0.002]
[1765694805479,0.02856573,90206.0,90205.0,1.037355]
[1765694806725,0.02856573,90206.0,90205.0,1.038355]
[1765694807520,0.01748,90206.0,90205.0,1.038355]
[1765694811183,0.01748,90206.0,90205.0,1.26007219]
[1765694811359,0.01748,90206.0,90205.0,1.038355]
[1765694813768,0.01108549,90208.0,90205.0,0.05202]
[1765694813974,0.03879921,90208.0,90205.0,0.05202]
[1765694815373,0.03879921,90208.0,90205.0,0.05102]
[1765694815736,0.03879921,90208.0,90205.0,0.06180585]
[1765694817385,0.14942145,90208.0,90205.0,0.06180585]
[1765694817648,0.14942145,90208.0,90205.0,0.06219185]
[1765694817821,0.03879921,90208.0,90205.0,0.06219185]
[1765694818889,0.03879921,90208.0,90205.0,0.051106]
[1765694819426,0.26051146,90208.0,90205.0,0.051106]
[1765694819629,0.23279774,90208.0,90205.0,0.051106]
[1765694819892,0.02771403,90207.0,90205.0,0.051106]
[1765694820797,0.03329332,90210.0,90207.0,0.01108561]
[1765694821069,0.22170245,90211.0,90209.0,0.02796]
[1765694821267,0.01108512,90211.0,90209.0,0.02796]
[1765694821417,0.01108512,90211.0,90209.0,0.05085]
[1765694822038,0.23278976,90211.0,90209.0,0.05085]
[1765694822239,0.22170491,90210.0,90209.0,0.05085]
[1765694822871,0.22170491,90210.0,90209.0,0.02796]
[1765694823075,0.22170491,90210.0,90209.0,0.01225]
[1765694823286,0.01108549,90208.0,90205.0,0.01108585]
[1765694824199,0.2327959,90208.0,90205.0,0.01108585]
[1765694824777,0.11062224,90205.0,90204.0,0.986335]
[1765694824960,0.01108561,90207.0,90204.0,0.986335]
[1765694825587,0.2327998,90207.0,90204.0,0.986335]
[1765694826188,0.22171664,90206.0,90204.0,0.986335]
[1765694828037,0.22171664,90206.0,90205.0,0.986335]
[1765694829237,0.22171719,90205.0,90204.0,0.986335]